[Event "27th Kavala Open 2018"]
[Site "Kavala"]
[Date "2018.08.11"]
[Round "9"]
[White "Charkhalashvili, Inga"]
[Black "Gouloutis, Nikolaos"]
[Result "1/2-1/2"]
[ECO "E00"]
[WhiteElo "2313"]
[BlackElo "2391"]
[Annotator "NA"]
[PlyCount "64"]
[EventDate "2018.08.06"]
[EventType "swiss"]
[EventCountry "GRE"]
[SourceTitle "playchess.com"]
[Source "ChessBase"]
[SourceQuality "1"]
[TimeControl "40/5400+30:900+30"]

1. d4 {[%emt 0:00:03]} e6 {[%emt 0:00:06]} 2. c4 {[%emt 0:00:37]} Bb4+ {[%emt 0:00:05]} 3. Bd2 {[%emt 0:00:04]} a5 {[%emt 0:00:11]} 4. Nf3 {[%emt 0:00:40]} d6 {[%emt 0:01:55]} 5. g3 {[%emt 0:04:50]} Nc6 {[%emt 0:01:15]} 6. Bg2 {[%emt 0:00:07]} e5 {[%emt 0:00:18]} 7. O-O {[%emt 0:02:33]} exd4 {[%emt 0:07:52]} 8. Bxb4 {[%emt 0:01:00]} axb4 {[%emt 0:00:05]} 9. Nxd4 {[%emt 0:00:13]} Nxd4 {[%emt 0:00:05]} 10. Qxd4 {[%emt 0:00:04]} Qf6 {[%emt 0:00:09]} 11. Qd2 {[%emt 0:12:03]} c5 {[%emt 0:02:11]} 12. Rd1 {[%emt 0:01:35]} Ra6 {[%emt 0:00:06]} 13. Qc1 {[%emt 0:05:24]} Qe7 {[%emt 0:05:38]} 14. Nd2 {[%emt 0:00:28]} Nf6 {[%emt 0:00:03]} 15. a3 {[%emt 0:00:52]} O-O {[%emt 0:10:38]} 16. axb4 {[%emt 0:00:16]} Rxa1 {[%emt 0:00:04]} 17. Qxa1 {[%emt 0:00:03]} Qxe2 {[%emt 0:00:06]} 18. bxc5 {[%emt 0:03:39]} dxc5 {[%emt 0:05:33]} 19. Bf1 {[%emt 0:01:01]} Qh5 {[%emt 0:01:41]} 20. Re1 {[%emt 0:01:35]} Rd8 {[%emt 0:25:21]} 21. Qa5 {[%emt 0:07:07]} b6 {[%emt 0:01:32]} 22. Qc3 {[%emt 0:02:54]} Bb7 {[%emt 0:06:23]} 23. Re7 {[%emt 0:07:18]} Ba8 {[%emt 0:00:19]} 24. Bg2 {[%emt 0:05:46]} Qd1+ {[%emt 0:00:16]} 25. Nf1 {[%emt 0:00:06]} Bxg2 {[%emt 0:07:59]} 26. Kxg2 {[%emt 0:00:05]} Qd6 {[%emt 0:02:19]} 27. Re1 {[%emt 0:00:55]} h5 {[%emt 0:00:48]} 28. h4 {[%emt 0:01:07]} Qc6+ {[%emt 0:04:39]} 29. Qf3 {[%emt 0:01:21]} Qxf3+ {[%emt 0:00:16]} 30. Kxf3 {[%emt 0:00:04]} Ng4 {[%emt 0:00:05]} 31. Ke2 {[%emt 0:06:33]} Re8+ {[%emt 0:03:43]} 32. Ne3 {[%emt 0:00:41]} Nxe3 {[%emt 0:00:25]} 1/2-1/2

[Event "27th Kavala Open 2018"]
[Site "Kavala"]
[Date "2018.08.11"]
[Round "9"]
[White "Naoum, Spyridon"]
[Black "Iskos, Alexandros"]
[Result "1/2-1/2"]
[ECO "E20"]
[WhiteElo "2302"]
[BlackElo "2179"]
[Annotator "ChessBase"]
[PlyCount "154"]
[EventDate "2018.08.06"]
[EventType "swiss"]
[EventCountry "GRE"]
[SourceTitle "playchess.com"]
[Source "ChessBase"]
[SourceQuality "1"]
[TimeControl "40/5400+30:900+30"]

1. d4 {[%emt 0:01:09]} Nf6 {[%emt 0:00:10]} 2. c4 {[%emt 0:01:11]} e6 {[%emt 0:00:04]} 3. Nc3 {[%emt 0:00:03]} Bb4 {[%emt 0:00:04]} 4. g3 {[%emt 0:00:03]} Bxc3+ {[%emt 0:00:54]} 5. bxc3 {[%emt 0:00:06]} d6 {[%emt 0:00:03]} 6. Bg2 {[%emt 0:00:04]} O-O {[%emt 0:00:29]} 7. Nf3 {[%emt 0:00:08]} Nc6 {[%emt 0:00:04]} 8. c5 {[%emt 0:00:36]} e5 {[%emt 0:13:02]} 9. O-O {[%emt 0:01:41]} e4 {[%emt 0:03:50]} 10. Nd2 {[%emt 0:03:55]} Re8 {[%emt 0:00:52]} 11. d5 {[%emt 0:12:37]} Nb8 {[%emt 0:06:17]} 12. Qa4 {[%emt 0:16:06]} Qe7 {[%emt 0:05:21]} 13. cxd6 {[%emt 0:03:11]} cxd6 {[%emt 0:00:05]} 14. Qd4 {[%emt 0:02:17]} Nbd7 {[%emt 0:01:21]} 15. Nc4 {[%emt 0:23:46]} b6 {[%emt 0:02:05]} 16. Bf4 {[%emt 0:06:19]} Ne5 {[%emt 0:00:31]} 17. Bg5 {[%emt 0:01:28]} Ba6 {[%emt 0:07:15]} 18. Nd2 {[%emt 0:05:16]} Bxe2 {[%emt 0:10:03]} 19. Rfe1 {[%emt 0:00:04]} Bf3 {[%emt 0:00:04]} 20. Nxe4 {[%emt 0:00:52]} Bxe4 {[%emt 0:00:12]} 21. Rxe4 {[%emt 0:00:20]} h6 {[%emt 0:01:54]} 22. Bxf6 {[%emt 0:00:11]} Qxf6 {[%emt 0:00:04]} 23. Rae1 {[%emt 0:04:49]} Rec8 {[%emt 0:04:19]} 24. f4 {[%emt 0:00:19]} Ng4 {[%emt 0:04:08]} 25. Bh3 {[%emt 0:05:55]} Qxd4+ {[%emt 0:01:46]} 26. Rxd4 {[%emt 0:00:03]} h5 {[%emt 0:00:12]} 27. Bxg4 {[%emt 0:00:25]} hxg4 {[%emt 0:00:05]} 28. Re3 {[%emt 0:07:50]} Rc5 {[%emt 0:00:40]} 29. f5 {[%emt 0:00:16]} Rac8 {[%emt 0:00:50]} 30. Rxg4 {[%emt 0:02:04]} Rxc3 {[%emt 0:03:54]} 31. Rxc3 {[%emt 0:00:38]} Rxc3 {[%emt 0:00:01]} 32. f6 {[%emt 0:00:04]} g6 {[%emt 0:00:03]} 33. Re4 {[%emt 0:00:30]} Rf3 {[%emt 0:01:38]} 34. Re8+ {[%emt 0:00:28]} Kh7 {[%emt 0:00:03]} 35. Re7 {[%emt 0:00:08]} Rxf6 {[%emt 0:00:08]} 36. Rxa7 {[%emt 0:00:03]} Rf5 {[%emt 0:00:15]} 37. Rd7 {[%emt 0:02:03]} Rxd5 {[%emt 0:00:23]} 38. Rxf7+ {[%emt 0:00:04]} Kh6 {[%emt 0:00:05]} 39. Rf2 {[%emt 0:01:00]} Ra5 {[%emt 0:03:32]} 40. Kg2 {[%emt 0:00:00]} Ra3 {[%emt 0:00:00]} 41. Kh3 {[%emt 0:07:26]} d5 {[%emt 0:06:12]} 42. Rd2 {[%emt 0:00:52]} d4 {[%emt 0:08:29]} 43. Kg4 {[%emt 0:04:03]} d3 {[%emt 0:01:05]} 44. Kf4 {[%emt 0:01:04]} b5 {[%emt 0:13:32]} 45. h3 {[%emt 0:01:44]} b4 {[%emt 0:03:08]} 46. Rb2 {[%emt 0:02:38]} b3 {[%emt 0:00:12]} 47. axb3 {[%emt 0:00:15]} d2 {[%emt 0:00:01]} 48. Rxd2 {[%emt 0:00:10]} Rxb3 {[%emt 0:00:02]} 49. Re2 {[%emt 0:00:43]} Rb5 {[%emt 0:01:12]} 50. Re5 {[%emt 0:01:07]} Rb4+ {[%emt 0:00:45]} 51. Re4 {[%emt 0:00:05]} Rb5 {[%emt 0:00:03]} 52. Kg4 {[%emt 0:00:19]} Rg5+ {[%emt 0:00:42]} 53. Kf3 {[%emt 0:00:00]} Rf5+ {[%emt 0:00:15]} 54. Rf4 {[%emt 0:00:05]} Ra5 {[%emt 0:00:29]} 55. Re4 {[%emt 0:00:52]} Rf5+ {[%emt 0:00:21]} 56. Kg2 {[%emt 0:00:06]} Ra5 {[%emt 0:00:36]} 57. Re8 {[%emt 0:01:23]} Ra3 {[%emt 0:00:44]} 58. h4 {[%emt 0:00:26]} Ra4 {[%emt 0:02:37]} 59. Kh3 {[%emt 0:01:05]} Rb4 {[%emt 0:01:11]} 60. Rf8 {[%emt 0:00:36]} Ra4 {[%emt 0:00:27]} 61. Rf4 {[%emt 0:00:13]} Ra3 {[%emt 0:00:28]} 62. Re4 {[%emt 0:01:02]} Rb3 {[%emt 0:00:27]} 63. Kg4 {[%emt 0:00:06]} Rb1 {[%emt 0:01:52]} 64. Re3 {[%emt 0:01:10]} Rb4+ {[%emt 0:00:29]} 65. Kf3 {[%emt 0:00:01]} Ra4 {[%emt 0:00:28]} 66. g4 {[%emt 0:00:08]} Rb4 {[%emt 0:01:12]} 67. Re8 {[%emt 0:00:14]} Rb3+ {[%emt 0:01:16]} 68. Kf4 {[%emt 0:00:09]} Rb4+ {[%emt 0:00:21]} 69. Re4 {[%emt 0:00:12]} Rb5 {[%emt 0:00:14]} 70. Re5 {[%emt 0:01:53]} Rb4+ {[%emt 0:00:04]} 71. Re4 {[%emt 0:00:01]} Rb5 {[%emt 0:00:03]} 72. Kf3 {[%emt 0:00:13]} Rb3+ {[%emt 0:00:13]} 73. Re3 {[%emt 0:00:05]} Rb4 {[%emt 0:00:15]} 74. Kg3 {[%emt 0:01:08]} Ra4 {[%emt 0:00:07]} 75. Rf3 {[%emt 0:01:19]} Rb4 {[%emt 0:00:07]} 76. Ra3 {[%emt 0:00:28]} Rc4 {[%emt 0:00:20]} 77. h5 {[%emt 0:00:49]} gxh5 {[%emt 0:00:26]} 1/2-1/2

[Event "27th Kavala Open 2018"]
[Site "Kavala"]
[Date "2018.08.11"]
[Round "9"]
[White "Megalios, Konstantinos"]
[Black "Tsolakidou, Stavroula"]
[Result "1-0"]
[ECO "A61"]
[WhiteElo "2292"]
[BlackElo "2418"]
[Annotator "NA RC"]
[PlyCount "83"]
[EventDate "2018.08.06"]
[EventType "swiss"]
[EventCountry "GRE"]
[SourceTitle "playchess.com"]
[Source "ChessBase"]
[SourceQuality "1"]
[TimeControl "40/5400+30:900+30"]

1. d4 {[%emt 0:07:54]} Nf6 {[%emt 0:00:07]} 2. c4 {[%emt 0:00:13]} e6 {[%emt 0:00:06]} 3. Nf3 {[%emt 0:00:04]} c5 {[%emt 0:00:37]} 4. d5 {[%emt 0:00:07]} d6 {[%emt 0:00:06]} 5. Nc3 {[%emt 0:00:05]} exd5 {[%emt 0:00:05]} 6. cxd5 {[%emt 0:00:05]} g6 {[%emt 0:00:06]} 7. Bf4 {[%emt 0:00:11]} a6 {[%emt 0:00:15]} 8. e4 {[%emt 0:00:07]} b5 {[%emt 0:00:37]} 9. Be2 {[%emt 0:00:07]} Bb7 {[%emt 0:05:11]} 10. Qc2 {[%emt 0:03:39]} Bg7 {[%emt 0:08:22]} 11. O-O {[%emt 0:01:00]} O-O {[%emt 0:05:39]} 12. a4 {[%emt 0:00:58]} b4 {[%emt 0:00:44]} 13. Nb1 {[%emt 0:00:52]} Re8 {[%emt 0:00:33]} 14. Bd3 {[%emt 0:00:46]} Nh5 {[%emt 0:03:48]} 15. Bg5 {[%emt 0:03:16]} Bf6 {[%emt 0:08:25]} 16. Be3 {[%emt 0:03:48]} Nd7 {[%emt 0:03:58]} 17. Nbd2 {[%emt 0:03:07]} a5 {[%emt 0:11:48]} 18. Nc4 {[%emt 0:04:20]} Nb6 {[%emt 0:02:53]} 19. Nfd2 {[%emt 0:06:59]} Nxc4 {[%emt 0:03:40]} 20. Bxc4 {[%emt 0:03:22]} Bg7 {[%emt 0:04:09]} 21. Rae1 {[%emt 0:05:18]} Qc7 {[%emt 0:09:53]} 22. b3 {[%emt 0:04:39]} Rf8 {[%emt 0:06:00]} 23. f4 {[%emt 0:03:04]} Nf6 {[%emt 0:03:38]} 24. Kh1 {[%emt 0:04:40]} Nd7 {[%emt 0:01:19]} 25. e5 {[%emt 0:07:34]} dxe5 {[%emt 0:03:55]} 26. f5 {[%emt 0:00:12]} Nb6 {[%emt 0:03:48]} 27. Ne4 {[%emt 0:14:43]} Bxd5 {[%emt 0:01:38]} 28. Bxd5 {[%emt 0:03:09]} Nxd5 {[%emt 0:00:06]} 29. f6 {[%emt 0:00:23]} Bh8 {[%emt 0:00:58]} 30. Bxc5 {[%emt 0:02:35]} Rfc8 {[%emt 0:01:02]} 31. Qd2 {[%emt 0:03:56]} Nc3 {[%emt 0:06:55]} 32. Be7 {[%emt 0:00:21]} Ra6 {[%emt 0:00:36]} 33. Nd6 {[%emt 0:02:00]} e4 {[%emt 0:02:42]} 34. Nxc8 {[%emt 0:04:13]} Qxc8 {[%emt 0:00:03]} 35. Rf5 {[%emt 0:01:32]} Ra8 {[%emt 0:00:35]} 36. Rh5 {[%emt 0:02:53]} Qg4 {[%emt 0:00:04]} 37. Rxa5 {[%emt 0:00:15]} Rc8 {[%emt 0:02:40]} 38. Rc5 {[%emt 0:00:13]} Re8 {[%emt 0:00:50]} 39. Rc7 {[%emt 0:01:39]} Qe6 {[%emt 0:01:05]} 40. Qd7 {[%emt 0:00:00]} Qxd7 {[%emt 0:00:00]} 41. Rxd7 {[%emt 0:00:40]} h5 {[%emt 0:02:01]} 42. a5 {[%emt 0:01:49]} 1-0

[Event "27th Kavala Open 2018"]
[Site "Kavala"]
[Date "2018.08.11"]
[Round "9"]
[White "Alexakis, Georgios"]
[Black "Schitco, Ivan"]
[Result "0-1"]
[ECO "B07"]
[WhiteElo "2056"]
[BlackElo "2377"]
[Annotator "NA"]
[PlyCount "74"]
[EventDate "2018.08.06"]
[EventType "swiss"]
[EventCountry "GRE"]
[SourceTitle "playchess.com"]
[Source "ChessBase"]
[SourceQuality "1"]
[TimeControl "40/5400+30:900+30"]

1. e4 {[%emt 0:07:11]} d6 {[%emt 0:00:09]} 2. d4 {[%emt 0:00:30]} Nf6 {[%emt 0:00:08]} 3. Nc3 {[%emt 0:01:14]} g6 {[%emt 0:00:15]} 4. f3 {[%emt 0:01:51]} c6 {[%emt 0:01:53]} 5. Be3 {[%emt 0:00:57]} Nbd7 {[%emt 0:00:14]} 6. Qd2 {[%emt 0:03:49]} b5 {[%emt 0:00:56]} 7. g4 {[%emt 0:04:00]} Bg7 {[%emt 0:00:10]} 8. a3 {[%emt 0:03:40]} Nb6 {[%emt 0:09:06]} 9. h4 {[%emt 0:05:29]} h5 {[%emt 0:00:32]} 10. g5 {[%emt 0:01:31]} Nfd7 {[%emt 0:00:16]} 11. f4 {[%emt 0:04:32]} Nc4 {[%emt 0:07:06]} 12. Bxc4 {[%emt 0:01:06]} bxc4 {[%emt 0:00:04]} 13. Nge2 {[%emt 0:08:19]} Nb6 {[%emt 0:04:03]} 14. Ng3 {[%emt 0:02:21]} d5 {[%emt 0:00:48]} 15. e5 {[%emt 0:02:15]} Bg4 {[%emt 0:00:46]} 16. O-O {[%emt 0:01:31]} e6 {[%emt 0:04:35]} 17. Nce2 {[%emt 0:07:48]} a5 {[%emt 0:05:35]} 18. Kh2 {[%emt 0:16:25]} O-O {[%emt 0:00:34]} 19. Rac1 {[%emt 0:02:09]} Qc7 {[%emt 0:01:29]} 20. c3 {[%emt 0:04:22]} Rfb8 {[%emt 0:00:21]} 21. Rc2 {[%emt 0:01:26]} Na4 {[%emt 0:01:43]} 22. Rb1 {[%emt 0:03:55]} Rb3 {[%emt 0:01:59]} 23. Nc1 {[%emt 0:01:44]} Rb6 {[%emt 0:00:35]} 24. b4 {[%emt 0:01:41]} cxb3 {[%emt 0:00:08]} 25. Rxb3 {[%emt 0:00:08]} Rab8 {[%emt 0:00:52]} 26. Rxb6 {[%emt 0:00:09]} Nxb6 {[%emt 0:00:11]} 27. Ra2 {[%emt 0:00:39]} Nc4 {[%emt 0:00:23]} 28. Qf2 {[%emt 0:00:31]} Bf8 {[%emt 0:00:36]} 29. a4 {[%emt 0:00:07]} Qb6 {[%emt 0:00:54]} 30. Nf1 {[%emt 0:00:49]} Qb1 {[%emt 0:02:44]} 31. Nd2 {[%emt 0:02:07]} Qxc1 {[%emt 0:00:24]} 32. Nxc4 {[%emt 0:00:07]} Qxc3 {[%emt 0:00:07]} 33. Rc2 {[%emt 0:00:16]} Qa1 {[%emt 0:06:32]} 34. Nxa5 {[%emt 0:01:14]} Rb1 {[%emt 0:01:07]} 35. Ra2 {[%emt 0:01:46]} Rh1+ {[%emt 0:00:16]} 36. Kg2 {[%emt 0:00:04]} Qb1 {[%emt 0:00:10]} 37. Rc2 {[%emt 0:00:17]} Bf5 {[%emt 0:01:10]} 0-1